fUSD/lending_fUSD_20250427
["ID","MTS","AMOUNT","RATE_DAILY","PERIOD"]
[359134769,1745728875603,-861.30942095,0.00048,120]
[359134770,1745728875628,-608.53426723,0.00048,120]
[359134771,1745728875655,-4473.06043068,0.00048,120]
[359134772,1745728875683,-300.0,0.00048,120]
[359134773,1745728875709,-300.0,0.00048,120]
[359134774,1745728875736,-300.0,0.00048,120]
[359134775,1745728875762,-1200.34699361,0.00048,120]
[359134776,1745728875788,-296.95314256,0.00048,120]
[359134777,1745728875813,-1000.0,0.00048,120]
[359134778,1745728875838,-300.0,0.000482,30]
[359134779,1745728875866,-150.0,0.0004823,120]
[359134780,1745728875892,-1000.0,0.0004825,120]
[359134781,1745728875917,-1000.0,0.0004841,120]
[359134782,1745728875942,-1000.0,0.000485,120]
[359134783,1745728875968,-160.0,0.000487,87]
[359134784,1745728875994,-1000.0,0.0004875,120]
[359134785,1745728876021,-150.0,0.00048762,120]
[359134786,1745728876046,-2290.45,0.000488,120]
[359134787,1745728876072,-800.0,0.000488,120]
[359134788,1745728876100,-150.0,0.00048996,30]
[359134789,1745728876127,-150.0,0.00048996,30]
[359134790,1745728876158,-150.0,0.00048996,30]
[359134791,1745728876185,-293.42186185,0.00048996,30]
[359134792,1745728876213,-150.0,0.00048996,30]
[359134793,1745728876239,-150.0,0.00048996,30]
[359134794,1745728876266,-153.2196896,0.00048996,30]
[359134795,1745728876292,-150.0,0.00048996,30]
[359134796,1745728876321,-150.0,0.00048996,30]
[359134797,1745728876346,-150.0,0.00048996,30]
[359134798,1745728876371,-229.88541912,0.00048996,30]
[359134799,1745728876396,-150.0,0.00048996,30]
[359134800,1745728876423,-564.0,0.00049,120]
[359134801,1745728876448,-300.0,0.00049,120]
[359134802,1745728876474,-1000.0,0.00049,120]
[359134803,1745728876500,-150.0,0.00049012,120]
[359134804,1745728876531,-179.623,0.00049016,120]
[359134805,1745728876566,-179.623,0.00049016,120]
[359134806,1745728876596,-179.624,0.00049016,120]
[359134807,1745728876624,-179.623,0.00049016,120]
[359134808,1745728876655,-242.0,0.0004904,30]
[359134809,1745728876689,-150.0,0.00049078,30]
[359134810,1745728876719,-208.0,0.0004908,30]
[359134811,1745728876749,-150.0,0.00049161,30]
[359134812,1745728876779,-150.0,0.00049177,30]
[359134813,1745728876811,-150.0,0.00049198,30]
[359134814,1745728876841,-150.0,0.00049243,30]
[359134815,1745728876872,-1000.0,0.0004925,120]
[359134816,1745728876900,-500.0,0.00049315,120]
[359134817,1745728876928,-500.0,0.00049315,120]
[359134818,1745728876960,-399.76,0.00049315,120]
[359134819,1745728876991,-700.0,0.00049315,120]
[359134820,1745728877021,-700.0,0.00049315,120]
[359134821,1745728877052,-700.0,0.00049315,120]
[359134822,1745728877083,-700.0,0.00049315,120]
[359134823,1745728877115,-700.0,0.00049315,120]
[359134824,1745728877145,-700.0,0.00049315,120]
[359134825,1745728877180,-700.0,0.00049315,120]
[359134826,1745728877209,-700.0,0.00049315,120]
[359134827,1745728877241,-700.0,0.00049315,120]
[359134828,1745728877271,-700.0,0.00049315,120]
[359134829,1745728877299,-700.0,0.00049315,120]
[359134830,1745728877331,-665.43920523,0.00049315,120]
[359134831,1745728877360,-1623.09,0.00049315,120]
[359134832,1745728877391,-1000.0,0.00049315,120]
[359134833,1745728877426,-185.95,0.00049315,30]
[359134834,1745728877455,-150.0,0.00049315,120]
[359134835,1745728877486,-150.0,0.00049326,30]
[359134836,1745728877514,-1081.74467288,0.00049342,120]
[359134837,1745728877542,-150.0,0.00049359,30]
[359134838,1745728877569,-150.0,0.00049388,120]
[359134839,1745728877596,-150.0,0.00049399,30]
[359134840,1745728877628,-243.78061329,0.000494,120]
[359134841,1745728877657,-245.46739464,0.000494,120]
[359134842,1745728877684,-150.0,0.00049408,30]
[359134843,1745728877710,-150.0,0.00049415,30]
[359134844,1745728877737,-150.0,0.0004945,30]
[359134845,1745728878309,-150.0,0.00049491,30]
[359134846,1745728878337,-1000.0,0.000495,120]
[359134847,1745728878364,-150.0,0.0004954,30]
[359134848,1745728878389,-150.0,0.0004954,30]
[359134849,1745728878414,-150.0,0.0004954,30]
[359134850,1745728878439,-150.0,0.00049573,30]
[359134851,1745728878465,-153.0,0.00049589,60]
[359134852,1745728878491,-153.0,0.00049589,60]
[359134853,1745728878517,-153.0,0.00049589,60]
[359134854,1745728878542,-153.0,0.00049589,60]
[359134855,1745728878567,-153.0,0.00049589,60]
[359134856,1745728878593,-153.0,0.00049589,60]
[359134857,1745728878618,-153.0,0.00049589,60]
[359134858,1745728878643,-153.0,0.00049589,60]
[359134859,1745728878669,-153.0,0.00049589,60]
[359134860,1745728878707,-153.0,0.00049589,60]
[359134861,1745728878739,-153.0,0.00049589,60]
[359134862,1745728878767,-153.0,0.00049589,60]
[359134863,1745728878795,-153.0,0.00049589,60]
[359134864,1745728878823,-153.0,0.00049589,60]
[359134865,1745728878852,-153.0,0.00049589,60]
[359134866,1745728878882,-153.0,0.00049589,60]
[359134867,1745728878911,-153.0,0.00049589,60]
[359134868,1745728878941,-153.0,0.00049589,60]
[359134869,1745728878970,-153.0,0.00049589,60]
[359134870,1745728878999,-153.0,0.00049589,60]
[359134871,1745728879029,-153.0,0.00049589,60]
[359134872,1745728879057,-153.0,0.00049589,60]
[359134873,1745728879086,-153.0,0.00049589,60]
[359134874,1745728879112,-153.0,0.00049589,60]
[359134875,1745728879140,-153.0,0.00049589,60]
[359134876,1745728879169,-153.0,0.00049589,60]
[359134877,1745728879196,-153.0,0.00049589,60]
[359134878,1745728879223,-153.0,0.00049589,60]
[359134879,1745728879254,-153.0,0.00049589,60]
[359134880,1745728879282,-153.0,0.00049589,60]
[359134881,1745728879309,-153.0,0.00049589,60]
[359134882,1745728879338,-153.0,0.00049589,60]
[359134883,1745728879367,-153.0,0.00049589,60]
[359134884,1745728879397,-153.0,0.00049589,60]
[359134885,1745728879425,-153.0,0.00049589,60]
[359134886,1745728879453,-153.0,0.00049589,60]
[359134887,1745728879482,-153.0,0.00049589,60]
[359134888,1745728879510,-153.0,0.00049589,60]
[359134889,1745728879538,-153.0,0.00049589,60]
[359134890,1745728879566,-153.0,0.00049589,60]
[359134891,1745728879593,-153.0,0.00049589,60]
[359134892,1745728879620,-153.0,0.00049589,60]
[359134893,1745728879648,-153.0,0.00049589,60]
[359134894,1745728879676,-153.0,0.00049589,60]
[359134895,1745728879702,-153.0,0.00049589,60]
[359134896,1745728879730,-153.0,0.00049589,60]
[359134897,1745728879755,-153.0,0.00049589,60]
[359134898,1745728879781,-153.0,0.00049589,60]
[359134899,1745728879806,-153.0,0.00049589,60]
[359134900,1745728879831,-153.0,0.00049589,60]
[359134901,1745728879857,-153.0,0.00049589,60]
[359134902,1745728879884,-153.0,0.00049589,60]
[359134903,1745728879910,-153.0,0.00049589,60]
[359134904,1745728879936,-153.0,0.00049589,60]
[359134905,1745728879962,-153.0,0.00049589,60]
[359134906,1745728879989,-153.0,0.00049589,60]
[359134907,1745728880016,-153.0,0.00049589,60]
[359134908,1745728880042,-153.0,0.00049589,60]
[359134909,1745728880068,-153.0,0.00049589,60]
[359134910,1745728880094,-153.0,0.00049589,60]
[359134911,1745728880121,-153.0,0.00049589,60]
[359134912,1745728880147,-153.0,0.00049589,60]
[359134913,1745728880176,-153.0,0.00049589,60]
[359134914,1745728880203,-153.0,0.00049589,60]
[359134915,1745728880231,-153.0,0.00049589,60]
[359134916,1745728880257,-153.0,0.00049589,60]
[359134917,1745728880283,-153.0,0.00049589,60]
[359134918,1745728880308,-153.0,0.00049589,60]
[359134919,1745728880334,-153.0,0.00049589,60]
[359134920,1745728880358,-153.0,0.00049589,60]
[359134921,1745728880384,-153.0,0.00049589,60]
[359134922,1745728880410,-153.0,0.00049589,60]
[359134923,1745728880436,-153.0,0.00049589,60]
[359134924,1745728880463,-153.0,0.00049589,60]
[359134925,1745728880489,-153.0,0.00049589,60]
[359134926,1745728880516,-153.0,0.00049589,60]
[359134927,1745728880542,-153.0,0.00049589,60]
[359134928,1745728880569,-153.0,0.00049589,60]
[359134929,1745728880596,-153.0,0.00049589,60]
[359134930,1745728880624,-153.0,0.00049589,60]
[359134931,1745728880651,-153.0,0.00049589,60]
[359134932,1745728880678,-153.0,0.00049589,60]
[359134933,1745728880703,-153.0,0.00049589,60]
[359134934,1745728880731,-153.0,0.00049589,60]
[359134935,1745728880758,-153.0,0.00049589,60]
[359134936,1745728880783,-153.0,0.00049589,60]
[359134937,1745728880810,-153.0,0.00049589,60]
[359134938,1745728880835,-153.0,0.00049589,60]
[359134939,1745728880862,-153.0,0.00049589,60]
[359134940,1745728880888,-153.0,0.00049589,60]
[359134941,1745728880914,-153.0,0.00049589,60]
[359134942,1745728880940,-153.0,0.00049589,60]
[359134943,1745728880966,-153.0,0.00049589,60]
[359134944,1745728880993,-153.0,0.00049589,60]
[359134945,1745728881020,-153.0,0.00049589,60]
[359134946,1745728881048,-153.0,0.00049589,60]
[359134947,1745728881259,-153.0,0.00049589,60]
[359134948,1745728881286,-153.0,0.00049589,60]
[359134949,1745728881312,-153.0,0.00049589,60]
[359134950,1745728881337,-153.0,0.00049589,60]
[359134951,1745728881362,-153.0,0.00049589,60]
[359134952,1745728881388,-153.0,0.00049589,60]
[359134953,1745728881412,-153.0,0.00049589,60]
[359134954,1745728881438,-153.0,0.00049589,60]
[359134955,1745728881462,-153.0,0.00049589,60]
[359134956,1745728881488,-153.0,0.00049589,60]
[359134957,1745728881514,-153.0,0.00049589,60]
[359134958,1745728881538,-150.0,0.00049601,30]
[359134959,1745728881563,-150.0,0.00049656,30]
[359134960,1745728881587,-160.0,0.000497,90]
[359134961,1745728881613,-150.0,0.00049722,30]
[359134962,1745728881638,-150.0,0.00049738,30]
[359134963,1745728881665,-1000.0,0.0004975,120]
[359134964,1745728881692,-1000.0,0.0004975,120]
[359134965,1745728881720,-150.0,0.000498,120]
[359134966,1745728881746,-209.067,0.000498,120]
[359134967,1745728881770,-175.36314026,0.000498,30]
[359134968,1745728881795,-150.0,0.00049803,30]
[359134969,1745728881819,-150.0,0.00049821,30]
[359134970,1745728881844,-150.0,0.00049834,30]
[359134971,1745728881871,-240.20098835,0.00049863,30]
[359134972,1745728881898,-150.0,0.00049871,120]
[359134973,1745728881924,-200.62947215,0.000499,120]
[359134974,1745728881951,-200.62947215,0.000499,120]
[359134975,1745728881976,-150.0,0.00049903,30]
[359134976,1745728882001,-150.0,0.00049903,30]
[359134977,1745728882234,-150.0,0.00049903,30]
[359134978,1745728882262,-150.0,0.00049986,30]
[359134979,1745728882290,-1000.0,0.00049998,120]
[359134980,1745728882317,-162.72413115,0.0005,120]
[359134981,1745728882342,-500095.04,0.0005,60]
[359134982,1745728882368,-1200.0,0.0005,120]
[359134983,1745728882394,-8093.0,0.0005,120]
[359134984,1745728882420,-523.027776,0.0005,120]
[359134985,1745728882445,-722.683602,0.0005,120]
[359134986,1745728882470,-168.74947424,0.0005,120]
[359134987,1745728882497,-180.0,0.0005,120]
[359134988,1745728882522,-300.0,0.0005,120]
[359134989,1745728882546,-13586.0,0.0005,120]
[359134990,1745728882571,-914.09089715,0.0005,120]
[359134991,1745728882595,-1413.23126476,0.0005,120]
[359134992,1745728882619,-304.62,0.0005,120]
[359134993,1745728882644,-300.0,0.0005,120]
[359134994,1745728882669,-160.0,0.0005,120]
[359134995,1745728882694,-1000.0,0.0005,120]
[359134996,1745728882720,-150.0,0.00050004,30]
[359134997,1745728882747,-150.0,0.00050068,30]
[359134998,1745728882772,-150.0,0.00050085,30]
[359134999,1745728882797,-150.0,0.00050085,30]
[359135000,1745728882822,-150.0,0.00050085,30]
[359135001,1745728882847,-502.68949001,0.00050136,120]
[359135002,1745728882875,-150.0,0.00050151,30]
[359135003,1745728882900,-150.0,0.00050206,30]
[359135004,1745728882927,-150.0,0.00050233,30]
[359135005,1745728882953,-1000.0,0.0005025,120]
[359135006,1745728882982,-150.0,0.00050252,30]
[359135007,1745728883009,-150.0,0.00050266,30]
[359135008,1745728883035,-150.0,0.00050316,30]
[359135009,1745728883061,-150.0,0.00050357,30]
[359135010,1745728883088,-150.0,0.00050398,30]
[359135011,1745728883116,-150.0,0.00050407,30]
[359135012,1745728883143,-150.0,0.00050448,30]
[359135013,1745728883172,-150.0,0.00050481,30]
[359135014,1745728883203,-1000.0,0.000505,120]
[359135015,1745728883233,-1000.0,0.000505,120]
[359135016,1745728883260,-150.0,0.00050563,30]
[359135017,1745728883287,-500.0,0.00050604,120]
[359135018,1745728883315,-150.0,0.00050609,30]
[359135019,1745728883343,-150.0,0.00050629,30]
[359135020,1745728883368,-150.0,0.00050629,30]
[359135021,1745728883394,-150.0,0.00050629,30]
[359135022,1745728883419,-150.0,0.00050646,30]
[359135023,1745728883449,-150.0,0.00050669,120]
[359135024,1745728883475,-150.0,0.00050671,30]
[359135025,1745728883501,-399.76,0.00050684,120]
[359135026,1745728883531,-160.0,0.000507,93]
[359135027,1745728883558,-150.0,0.00050728,30]
[359135028,1745728883583,-150.0,0.00050776,120]
[359135029,1745728883609,-150.0,0.00050811,30]
[359135030,1745728883637,-150.0,0.00050811,30]
[359135031,1745728883665,-150.0,0.00050811,30]
[359135032,1745728883692,-150.0,0.00050811,30]
[359135033,1745728883718,-210.0,0.0005084,30]
[359135034,1745728883745,-242.0,0.0005084,30]
[359135035,1745728883770,-208.0,0.0005086,30]
[359135036,1745728883795,-150.0,0.00050893,30]
[359135037,1745728883823,-150.0,0.00050976,30]
[359135038,1745728883851,-150.0,0.00050992,30]
[359135039,1745728883877,-50000.0,0.00051,120]
[359135040,1745728883906,-13890.33,0.00051,60]
[359135041,1745728883931,-254.21522742,0.00051,60]
[359135042,1745728883956,-2202.0,0.00051,120]
[359135043,1745728883982,-30000.0,0.00051,120]
[359135044,1745728884006,-2641.0,0.00051,120]
[359135045,1745728884032,-334.0,0.00051,120]
[359135046,1745728884057,-300.0,0.00051,120]
[359135047,1745728884082,-2400.69398722,0.00051,120]
[359135048,1745728884108,-593.90628513,0.00051,120]
[359135049,1745728884135,-1000.0,0.00051,120]
[359135050,1745728884164,-300.0,0.00051001,30]
[359135051,1745728884395,-150.0,0.00051012,30]
[359135052,1745728884425,-150.0,0.00051058,30]
[359135053,1745728884453,-150.0,0.0005109,30]
[359135054,1745728884482,-150.0,0.000511,120]
[359135055,1745728884508,-150.0,0.00051141,30]
[359135056,1745728884535,-500.0,0.00051152,120]
[359135057,1745728884560,-150.0,0.00051174,30]
[359135058,1745728884586,-150.0,0.00051174,30]
[359135059,1745728884611,-150.0,0.00051174,30]
[359135060,1745728884639,-150.0,0.00051214,30]
[359135061,1745728884667,-150.0,0.00051223,30]
[359135062,1745728884691,-150.0,0.00051264,30]
[359135063,1745728884721,-150.0,0.00051298,120]
[359135064,1745728884748,-150.0,0.00051306,30]
[359135065,1745728884774,-150.0,0.00051355,30]
[359135066,1745728884799,-150.0,0.00051388,30]
[359135067,1745728884825,-150.0,0.00051416,30]
[359135068,1745728884853,-150.0,0.00051471,30]
[359135069,1745728884878,-1000.0,0.000515,120]
[359135070,1745728884905,-150.0,0.00051509,30]
[359135071,1745728884932,-150.0,0.00051537,30]
[359135072,1745728884961,-150.0,0.00051553,30]
[359135073,1745728884989,-150.0,0.00051617,30]
[359135074,1745728885017,-150.0,0.00051636,30]
[359135075,1745728885046,-160.0,0.000517,96]
[359135076,1745728885073,-500.0,0.000517,120]
[359135077,1745728885099,-150.0,0.00051718,30]
[359135078,1745728885127,-150.0,0.00051718,30]
[359135079,1745728885153,-150.0,0.00051718,30]
[359135080,1745728885182,-150.0,0.00051718,30]
[359135081,1745728885209,-150.0,0.00051718,30]
[359135082,1745728885236,-150.0,0.00051718,30]
[359135083,1745728885264,-1407.99822573,0.000518,120]
[359135084,1745728885291,-150.0,0.000518,30]
[359135085,1745728885320,-150.0,0.00051819,30]
[359135086,1745728885345,-150.0,0.00051883,30]
[359135087,1745728885371,-150.0,0.00051899,30]
[359135088,1745728885396,-150.0,0.00051927,30]
[359135089,1745728885421,-150.0,0.00051965,30]
[359135090,1745728885446,-3201.10734331,0.00052,30]
[359135091,1745728885471,-1941.17687692,0.00052,120]
[359135092,1745728885496,-293.21918105,0.00052,120]
[359135093,1745728885520,-151.0,0.00052,120]
[359135094,1745728885545,-30000.0,0.00052,120]
[359135095,1745728885571,-900.0,0.00052,120]
[359135096,1745728885597,-797.39240669,0.00052,30]
[359135097,1745728885623,-300.0,0.00052,120]
[359135098,1745728885648,-13586.0,0.00052,120]
[359135099,1745728885673,-150.97035375,0.00052,120]
[359135100,1745728885698,-10000.0,0.00052,30]
[359135101,1745728885723,-300.0,0.00052,120]
[359135102,1745728885749,-1480.30892525,0.00052,120]
[359135103,1745728885774,-2000.0,0.00052,30]
[359135104,1745728885799,-800.0,0.00052,120]
[359135105,1745728885826,-1000.0,0.00052,120]
[359135106,1745728885851,-3043.20979894,0.00052,120]
[359135107,1745728885877,-150.0,0.0005202,30]
[359135108,1745728885905,-150.0,0.00052048,30]
[359135109,1745728885932,-399.76,0.00052054,120]
[359135110,1745728885959,-1193.59,0.00052054,120]
[359135111,1745728885986,-1623.09,0.00052054,120]
[359135112,1745728886013,-500.0,0.00052054,120]
[359135113,1745728886040,-241.31907352,0.00052054,120]
[359135114,1745728886067,-1000.0,0.00052055,120]
[359135115,1745728886094,-150.0,0.00052081,30]
[359135116,1745728886121,-500.0,0.00052082,90]
[359135117,1745728886149,-150.0,0.0005213,30]
[359135118,1745728886177,-150.0,0.00052172,30]
[359135119,1745728886203,-150.0,0.00052213,30]
[359135120,1745728886230,-150.0,0.00052222,30]
[359135121,1745728886258,-500.0,0.00052248,120]
[359135122,1745728886283,-150.0,0.00052262,30]
[359135123,1745728886308,-150.0,0.00052262,30]
[359135124,1745728886333,-150.0,0.00052262,30]
[359135125,1745728886358,-150.0,0.00052295,30]
[359135126,1745728886385,-1193.59,0.00052328,120]
[359135127,1745728886412,-500.0,0.00052328,120]
[359135128,1745728886439,-150.0,0.00052346,30]
[359135129,1745728886467,-500.0,0.00052356,90]
[359135130,1745728886495,-150.0,0.00052378,30]
[359135131,1745728886520,-2290.45,0.000524,120]
[359135132,1745728886546,-254.53346,0.000524,120]
[359135133,1745728886571,-150.0,0.00052424,30]
[359135134,1745728886597,-150.0,0.00052444,30]
[359135135,1745728886626,-150.0,0.0005246,30]
[359135136,1745728886652,-150.0,0.00052471,120]
[359135137,1745728886678,-300.0,0.000525,120]
[359135138,1745728886704,-500.0,0.000525,120]
[359135139,1745728886733,-150.0,0.00052543,30]
[359135140,1745728886758,-870.11873629,0.0005255,60]
[359135141,1745728886784,-1193.59,0.00052602,120]
[359135142,1745728886811,-500.0,0.00052602,120]
[359135143,1745728886836,-150.0,0.00052625,30]
[359135144,1745728886861,-150.0,0.00052625,30]
[359135145,1745728886887,-150.0,0.00052625,30]
[359135146,1745728886912,-150.0,0.00052625,30]
[359135147,1745728886938,-500.0,0.0005263,90]
[359135148,1745728886963,-210.0,0.0005264,30]
[359135149,1745728886987,-242.0,0.0005264,30]
[359135150,1745728887013,-208.0,0.0005265,30]
[359135151,1745728887040,-160.0,0.000527,98]
[359135152,1745728887067,-677.94027054,0.000527,120]
[359135153,1745728887093,-150.0,0.00052708,30]
[359135154,1745728887118,-151.0,0.0005274,120]
[359135155,1745728887310,-150.0,0.00052765,30]
[359135156,1745728887343,-150.0,0.0005279,30]
[359135157,1745728887370,-500.0,0.00052796,120]
[359135158,1745728887398,-150.0,0.000528,120]
[359135159,1745728887427,-150.0,0.00052807,30]
[359135160,1745728887454,-150.0,0.00052807,30]
[359135161,1745728887483,-150.0,0.00052807,30]
[359135162,1745728887509,-150.0,0.00052827,30]
[359135163,1745728887536,-150.0,0.00052873,30]
[359135164,1745728887563,-1193.59,0.00052876,120]
[359135165,1745728887589,-500.0,0.00052876,120]
[359135166,1745728887615,-500.0,0.00052904,90]
[359135167,1745728887643,-150.0,0.00052955,30]
[359135168,1745728887671,-150.0,0.00052988,30]
[359135169,1745728887697,-775.0,0.00053,120]
[359135170,1745728887723,-614.20433286,0.00053,120]
[359135171,1745728887749,-1148.31045925,0.00053,110]
[359135172,1745728887774,-30000.0,0.00053,120]
[359135173,1745728887799,-900.0,0.00053,54]
[359135174,1745728887824,-1950.56657542,0.00053,30]
[359135175,1745728887849,-10000.0,0.00053,30]
[359135176,1745728887879,-314.05,0.00053,120]
[359135177,1745728887906,-500.0,0.00053,120]
[359135178,1745728887933,-200.0,0.00053,120]
[359135179,1745728887959,-150.0,0.00053029,30]
[359135180,1745728887987,-150.0,0.00053038,30]
[359135181,1745728888014,-150.0,0.00053079,30]
[359135182,1745728888040,-150.0,0.0005312,30]
[359135183,1745728888067,-1193.59,0.0005315,120]
[359135184,1745728888093,-500.0,0.0005315,120]
[359135185,1745728888122,-150.0,0.0005317,30]
[359135186,1745728888150,-6260.07509635,0.00053173,120]
[359135187,1745728888178,-500.0,0.00053178,90]
[359135188,1745728888205,-150.0,0.00053184,30]
[359135189,1745728888232,-2437.88858564,0.00053184,120]
[359135190,1745728888262,-2437.88858564,0.00053196,120]
[359135191,1745728888287,-3962.31657555,0.00053198,120]
[359135192,1745728888312,-150.0,0.00053203,30]
[359135193,1745728888338,-3962.31657555,0.00053206,120]
[359135194,1745728888364,-697.27163473,0.0005321,120]
[359135195,1745728888390,-3962.31657555,0.00053214,120]
[359135196,1745728888420,-150.0,0.00053217,120]
[359135197,1745728888447,-697.27163473,0.00053223,120]
[359135198,1745728888472,-150.0,0.0005323,30]
[359135199,1745728888499,-6260.07509635,0.00053241,120]
[359135200,1745728888525,-59616.25104282,0.00053254,120]
[359135201,1745728888551,-2160.91143316,0.00053265,120]
[359135202,1745728888576,-472.57024682,0.00053265,120]
[359135203,1745728888602,-2437.88858564,0.00053271,120]
[359135204,1745728888629,-2437.88858564,0.00053276,120]
[359135205,1745728888654,-150.0,0.00053285,30]
[359135206,1745728888680,-472.57024682,0.00053292,120]
[359135207,1745728888705,-10000.0,0.000533,30]
[359135208,1745728888731,-2437.88858564,0.000533,120]
[359135209,1745728888757,-200.0,0.00053301,120]
[359135210,1745728888783,-3962.31657555,0.00053311,120]
[359135211,1745728888808,-610.41691214,0.00053315,120]
[359135212,1745728888834,-59616.25104282,0.00053324,120]
[359135213,1745728888859,-284.83430692,0.00053344,120]
[359135214,1745728888884,-3962.31657555,0.0005335,120]
[359135215,1745728888910,-150.0,0.00053351,30]
[359135216,1745728888936,-150.0,0.00053351,30]
[359135217,1745728888961,-150.0,0.00053351,30]
[359135218,1745728888988,-697.27163473,0.00053352,120]
[359135219,1745728889015,-3962.31657555,0.00053354,120]
[359135220,1745728889042,-200.0,0.00053355,120]
[359135221,1745728889069,-6260.07509635,0.00053358,120]
[359135222,1745728889095,-200.0,0.00053361,120]
[359135223,1745728889122,-59616.25104282,0.00053364,120]
[359135224,1745728889149,-59616.25104282,0.00053365,120]
[359135225,1745728889177,-150.0,0.00053368,30]
[359135226,1745728889205,-472.57024682,0.00053371,120]
[359135227,1745728889233,-2437.88858564,0.00053371,120]
[359135228,1745728889260,-200.0,0.00053375,120]
[359135229,1745728889285,-866.91376745,0.00053376,30]
[359135230,1745728889310,-2160.91143316,0.00053381,120]
[359135231,1745728889337,-472.57024682,0.00053387,120]
[359135232,1745728889363,-59616.25104282,0.00053403,120]
[359135233,1745728889388,-610.41691214,0.00053405,120]
[359135234,1745728889413,-2160.91143316,0.00053416,120]
[359135235,1745728889439,-399.76,0.00053424,120]
[359135236,1745728889466,-1193.59,0.00053424,120]
[359135237,1745728889494,-155.47261955,0.00053424,30]
[359135238,1745728889520,-500.0,0.00053424,30]
[359135239,1745728889547,-500.0,0.00053424,120]
[359135240,1745728889572,-1000.0,0.00053424,120]
[359135241,1745728889597,-150.0,0.00053432,30]
[359135242,1745728889623,-2160.91143316,0.00053448,120]
[359135243,1745728889648,-610.41691214,0.00053449,120]
[359135244,1745728889674,-200.0,0.00053449,120]
[359135245,1745728889699,-150.0,0.0005345,30]
[359135246,1745728889724,-6260.07509635,0.00053452,120]
[359135247,1745728889751,-500.0,0.00053452,90]
[359135248,1745728889777,-3962.31657555,0.00053454,120]
[359135249,1745728889803,-2437.88858564,0.00053463,120]
[359135250,1745728889828,-610.41691214,0.00053467,120]
[359135251,1745728889854,-200.0,0.00053474,120]
[359135252,1745728889879,-2160.91143316,0.00053476,120]
[359135253,1745728889905,-6260.07509635,0.00053478,120]
[359135254,1745728889931,-2160.91143316,0.00053479,120]
[359135255,1745728889959,-151.0,0.00053479,120]
[359135256,1745728889985,-472.57024682,0.0005349,120]
[359135257,1745728890015,-500.0,0.000535,120]
[359135258,1745728890270,-610.41691214,0.00053504,120]
[359135259,1745728890304,-697.27163473,0.00053511,120]
[359135260,1745728890335,-200.0,0.00053512,120]
[359135261,1745728890364,-200.0,0.00053519,120]
[359135262,1745728890393,-697.27163473,0.00053519,120]
[359135263,1745728890421,-59616.25104282,0.00053519,120]
[359135264,1745728890447,-472.57024682,0.00053521,120]
[359135265,1745728890475,-150.0,0.00053533,30]
[359135266,1745728890504,-150.0,0.00053533,30]
[359135267,1745728890530,-150.0,0.00053533,30]
[359135268,1745728890556,-167.97052589,0.00053535,120]